bitfinex/quotes_BTCUSD_20251231
["timestamp","ask_amount","ask_price","bid_price","bid_amount"]
[1767141794039,0.00026178,88405.0,88392.0,0.01131324]
[1767141794243,0.01132,88403.0,88390.0,0.06788096]
[1767141794475,0.01132,88403.0,88391.0,0.01131336]
[1767141794678,0.15305196,88402.0,88386.0,0.022634]
[1767141794800,0.01132,88402.0,88386.0,0.01132]
[1767141794999,0.15305234,88399.0,88386.0,0.01132]
[1767141795206,0.14174,88397.0,88386.0,0.01132]
[1767141795408,0.01131272,88396.0,88386.0,0.01132]
[1767141795609,0.15305272,88396.0,88386.0,0.01132]
[1767141795806,0.14174,88395.0,88375.0,0.00015348]
[1767141796022,0.01131452,88382.0,88375.0,0.00015348]
[1767141796219,0.01131452,88382.0,88375.0,4.8e-07]
[1767141796220,0.14321,88382.0,88375.0,4.8e-07]
[1767141799917,0.01132,88386.0,88375.0,0.01131589]
[1767141800113,0.15453,88386.0,88375.0,4.8e-07]
[1767141800519,0.15453,88386.0,88375.0,0.01131589]
[1767141800849,0.15453,88386.0,88375.0,4.8e-07]
[1767141808157,0.01132,88386.0,88375.0,4.8e-07]
[1767141808349,0.022634,88386.0,88375.0,4.8e-07]
[1767141808548,0.01132,88386.0,88375.0,4.8e-07]
[1767141810878,0.15453,88386.0,88375.0,4.8e-07]
[1767141820633,0.15453,88386.0,88375.0,0.01131589]
[1767141821050,0.15453,88386.0,88375.0,4.8e-07]
[1767141823369,0.14321,88380.0,88375.0,4.8e-07]
[1767141823575,0.15452477,88380.0,88375.0,4.8e-07]
[1767141823919,0.14321,88380.0,88375.0,4.8e-07]
[1767141824870,0.165844,88386.0,88375.0,4.8e-07]
[1767141825406,0.55875017,88385.0,88375.0,4.8e-07]
[1767141826175,0.01131426,88384.0,88375.0,4.8e-07]
[1767141826732,0.01131439,88383.0,88375.0,4.8e-07]
[1767141826923,0.14664439,88383.0,88375.0,4.8e-07]
[1767141827180,0.13533,88381.0,88375.0,4.8e-07]
[1767141831617,0.13533,88381.0,88368.0,0.0001116]
[1767141831618,0.14664567,88373.0,88365.0,0.00053797]
[1767141831872,0.01132,88372.0,88365.0,0.00053797]
[1767141832042,0.1579658,88372.0,88365.0,0.00053797]
[1767141832250,0.14665,88372.0,88365.0,0.00053797]
[1767141832793,4.033e-05,88365.0,88355.0,0.02274957]
[1767141832935,4.033e-05,88365.0,88361.0,0.00021828]
[1767141833132,0.13533,88370.0,88361.0,0.00021828]
[1767141839229,0.134822,88370.0,88361.0,0.00021828]
[1767141840300,0.01132,88372.0,88361.0,0.00021828]
[1767141840500,0.41549843,88371.0,88361.0,0.00021828]
[1767141840672,0.01132,88372.0,88361.0,0.00021828]
[1767141850673,0.01132,88372.0,88361.0,0.01153549]
[1767141850879,0.01132,88372.0,88361.0,0.00021828]
[1767141851088,0.01132,88372.0,88361.0,0.01153549]
[1767141851281,0.01132,88372.0,88361.0,0.00021828]
[1767141852534,0.01132,88372.0,88361.0,0.01153549]
[1767141853790,0.01132,88372.0,88361.0,0.00021828]
[1767141853942,0.01132,88372.0,88361.0,0.01153549]
[1767141854346,0.01132,88372.0,88361.0,0.00021828]
[1767141857491,0.0226358,88372.0,88361.0,0.00021828]
[1767141858846,0.42685609,88371.0,88361.0,0.00021828]
[1767141859047,0.41554017,88371.0,88361.0,0.00021828]
[1767141863307,0.01132,88372.0,88361.0,0.00021828]
[1767141863709,0.0226358,88372.0,88361.0,0.00021828]
[1767141863889,0.01132,88372.0,88361.0,0.00021828]
[1767141866886,0.0226358,88372.0,88361.0,0.00021828]
[1767141867233,0.01131592,88371.0,88361.0,0.00021828]
[1767141867435,0.0226358,88372.0,88361.0,0.00021828]
[1767141869075,0.01131592,88371.0,88361.0,0.00021828]
[1767141869885,0.0226358,88372.0,88361.0,0.00021828]
[1767141870532,0.01131592,88371.0,88361.0,0.00021828]
[1767141870849,0.0226358,88372.0,88361.0,0.00021828]
[1767141871822,0.01132,88372.0,88361.0,0.00021828]
[1767141873643,0.0226358,88372.0,88361.0,0.00021828]
[1767141874835,0.01132,88372.0,88361.0,0.00021828]
[1767141875360,0.0226358,88372.0,88361.0,0.00021828]
[1767141875715,0.01132,88372.0,88361.0,0.00021828]
[1767141877446,0.01132,88372.0,88361.0,0.13597828]
[1767141901912,0.01132,88372.0,88355.0,0.0001116]
[1767141901913,0.01131708,88362.0,88355.0,0.0001116]
[1767141902079,0.01131759,88358.0,88355.0,0.0001116]
[1767141902281,0.01131759,88358.0,88348.0,0.0001116]
[1767141902282,0.05659365,88350.0,88348.0,0.0001116]
[1767141902448,0.05659365,88350.0,88348.0,1e-08]
[1767141902671,0.2148915,88351.0,88348.0,1e-08]
[1767141903096,0.15829849,88351.0,88348.0,1e-08]
[1767141903334,0.14698,88351.0,88348.0,1e-08]
[1767141903711,0.01131823,88353.0,88348.0,1e-08]
[1767141904487,0.0226381,88354.0,88348.0,1e-08]
[1767141904704,0.01132,88354.0,88349.0,0.14716]
[1767141904882,0.01127818,88354.0,88349.0,0.14716]
[1767141905428,0.01132,88356.0,88354.0,0.14771]
[1767141905668,0.01132,88359.0,88354.0,0.14771]
[1767141906004,0.01132,88359.0,88354.0,0.14716]
[1767141906977,0.02263746,88359.0,88354.0,0.14716]
[1767141907422,0.01132,88359.0,88354.0,0.14716]
[1767141908024,0.01131708,88362.0,88354.0,0.14716]
[1767141908225,0.01131695,88363.0,88354.0,0.14716]
[1767141910294,0.01131708,88362.0,88354.0,0.14716]
[1767141911410,0.000549,88354.0,88348.0,1e-08]
[1767141911620,0.01136,88357.0,88348.0,1e-08]
[1767141911795,0.02267772,88357.0,88348.0,1e-08]
[1767141912006,0.01136,88357.0,88348.0,1e-08]
[1767141913001,0.01136,88357.0,88348.0,0.14716001]
[1767141914077,0.02267772,88357.0,88348.0,0.14716001]
[1767141915242,0.01136,88357.0,88348.0,0.14716001]
[1767141919531,0.02267772,88357.0,88348.0,0.14716001]
[1767141919863,0.01136,88357.0,88348.0,0.14716001]
[1767141932254,0.01131785,88356.0,88348.0,0.14716001]
[1767141932386,0.02267772,88357.0,88348.0,0.14716001]
[1767141933158,0.01131785,88356.0,88348.0,0.14716001]
[1767141934044,0.01131797,88355.0,88348.0,0.14716001]
[1767141934199,0.01131785,88356.0,88348.0,1e-08]
[1767141934404,0.02267772,88357.0,88348.0,1e-08]
[1767141934604,0.01136,88357.0,88348.0,1e-08]
[1767141934838,0.05659349,88350.0,88341.0,0.0001116]
[1767141935168,0.01131887,88348.0,88341.0,0.0001116]
[1767141935327,0.01131861,88350.0,88341.0,0.0001116]
[1767141935529,0.01131874,88349.0,88341.0,0.0001116]
[1767141935706,0.01131861,88350.0,88341.0,0.0001116]
[1767141936112,0.01131874,88349.0,88341.0,0.0001116]
[1767141937414,0.01131861,88350.0,88341.0,0.0001116]
[1767141938453,0.01131874,88349.0,88341.0,0.0001116]
[1767141938657,0.01131861,88350.0,88341.0,0.0001116]
[1767141938835,0.01131874,88349.0,88341.0,0.0001116]
[1767141939059,0.01131861,88350.0,88341.0,0.0001116]
[1767141939967,0.01131849,88351.0,88341.0,0.0001116]
[1767141941860,0.01131836,88352.0,88341.0,0.0001116]
[1767141942372,0.01131823,88353.0,88341.0,0.0001116]
[1767141942571,0.01131836,88352.0,88341.0,0.0001116]
[1767141942787,0.01131823,88353.0,88341.0,0.0001116]
[1767141943327,0.0113181,88354.0,88341.0,0.0001116]
[1767141943466,0.0113181,88354.0,88344.0,0.41576006]
[1767141943670,0.01131797,88355.0,88344.0,0.41576006]
[1767141943875,0.0113181,88354.0,88344.0,0.41576006]
[1767141944076,0.01131823,88353.0,88344.0,0.41576006]
[1767141944478,0.0113181,88354.0,88344.0,0.41576006]
[1767141944680,0.01131797,88355.0,88344.0,0.41576006]
[1767141944886,0.06790612,88358.0,88344.0,0.41576006]
[1767141945234,0.01136,88357.0,88346.0,0.41576006]
[1767141946021,0.02267772,88357.0,88346.0,0.41576006]
[1767141946626,0.01131785,88356.0,88346.0,0.41576006]
[1767141946938,0.01131797,88355.0,88346.0,0.41576006]
[1767141947316,0.0113181,88354.0,88346.0,0.41576006]
[1767141947518,0.0113181,88354.0,88344.0,0.41576006]
[1767141947989,0.01131797,88355.0,88344.0,0.41576006]
[1767141948383,0.01131797,88355.0,88344.0,0.55607006]
[1767141948700,0.01136,88357.0,88344.0,0.55607006]
[1767141948871,0.01136,88357.0,88346.0,0.41576006]
[1767141954291,0.01131746,88359.0,88346.0,0.41576006]
[1767141954493,0.01131746,88359.0,88349.0,0.41576006]
[1767141954908,0.01131759,88358.0,88349.0,0.41576006]
[1767141955330,0.01131746,88359.0,88349.0,0.41576006]
[1767141955534,0.01131721,88361.0,88349.0,0.41576006]
[1767141955740,0.01131746,88359.0,88349.0,0.41576006]
[1767141956120,0.01131746,88359.0,88344.0,0.14031]
[1767141956322,0.01131733,88360.0,88349.0,0.41576006]
[1767141956520,0.02267746,88359.0,88349.0,0.41576006]
[1767141957699,0.01136,88359.0,88349.0,0.41576006]
[1767141960865,0.01131759,88358.0,88349.0,0.41576006]
[1767141961072,0.01131759,88358.0,88344.0,0.14031]
[1767141961073,0.000549,88349.0,88344.0,0.14031]
[1767141961620,0.0113181,88354.0,88344.0,0.14031]
[1767141962045,0.01131874,88349.0,88341.0,0.0001116]
[1767141962244,0.01131861,88350.0,88341.0,0.0001116]
[1767141962481,0.01131849,88351.0,88341.0,0.0001116]
[1767141962776,0.01131823,88353.0,88341.0,0.0001116]
[1767141963004,0.19912982,88356.0,88343.0,0.41576006]
[1767141963186,0.19912982,88356.0,88346.0,0.41576006]
[1767141963363,0.01131797,88355.0,88346.0,0.41576006]
[1767141963565,0.01131823,88353.0,88346.0,0.41576006]
[1767141964216,0.0113181,88354.0,88346.0,0.41576006]
[1767141964807,0.01131797,88355.0,88346.0,0.41576006]
[1767141965393,0.14254,88356.0,88346.0,0.41576006]
[1767141965808,0.01131797,88355.0,88346.0,0.41576006]
[1767141966752,0.01131772,88357.0,88346.0,0.41576006]
[1767141967235,0.01131797,88355.0,88346.0,0.41576006]
[1767141967630,0.01131785,88356.0,88342.0,0.143]
[1767141967840,0.01131785,88356.0,88346.0,0.41576006]
[1767141968079,0.01131772,88357.0,88346.0,0.41576006]
[1767141968198,0.01131785,88356.0,88346.0,0.41576006]
[1767141968593,0.01131797,88355.0,88346.0,0.41576006]
[1767141968948,0.01131772,88357.0,88346.0,0.41576006]
[1767141969314,0.01131785,88356.0,88346.0,0.41576006]
[1767141969510,0.01131772,88357.0,88346.0,0.41576006]
[1767141969936,0.01131785,88356.0,88346.0,0.41576006]
[1767141970137,0.01131772,88357.0,88346.0,0.41576006]
[1767141970867,0.01131759,88358.0,88346.0,0.41576006]
[1767141971091,0.01131772,88357.0,88346.0,0.41576006]
[1767141971631,0.01131785,88356.0,88346.0,0.41576006]
[1767141971828,0.01131772,88357.0,88346.0,0.41576006]
[1767141973489,0.01131759,88358.0,88346.0,0.41576006]
[1767141973632,0.01131759,88358.0,88342.0,0.143]
[1767141973633,0.01136,88359.0,88348.0,0.41576006]
[1767141977046,0.01136,88359.0,88346.0,0.143]
[1767141977246,0.01136,88359.0,88349.0,0.41576006]
[1767141978997,0.0001116,88365.0,88359.0,0.00055]
[1767141979197,0.01131682,88364.0,88359.0,0.00055]
[1767141979423,0.02267695,88363.0,88355.0,0.41576006]
[1767141979761,0.02267695,88363.0,88354.0,0.14469]
[1767141980196,0.01136,88363.0,88354.0,0.14469]
[1767141982996,0.02267695,88363.0,88354.0,0.14469]
[1767141983196,0.01136,88363.0,88354.0,0.14469]
[1767141986054,0.01136,88363.0,88346.0,0.01136]
[1767141986404,0.01131823,88353.0,88350.0,0.41576006]
[1767141986608,0.000549,88350.0,88347.0,0.14469]
[1767141986949,0.01131836,88352.0,88347.0,0.14469]
[1767141987168,0.06790876,88354.0,88347.0,0.14469]
[1767141987390,0.01131823,88353.0,88347.0,0.14469]
[1767141987599,0.0113181,88354.0,88347.0,0.14469]
[1767141988173,0.01131797,88355.0,88347.0,0.14469]
[1767141990667,0.01131785,88356.0,88347.0,0.14469]
[1767141991710,0.01131797,88355.0,88347.0,0.14469]
[1767141993545,0.06790562,88358.0,88347.0,0.14469]
[1767141993893,0.01131772,88357.0,88347.0,0.14469]
[1767141994935,0.06790674,88357.0,88347.0,0.14469]
[1767141995178,0.01131797,88355.0,88347.0,0.14469]
[1767141996067,0.01131772,88357.0,88347.0,0.14469]
[1767141996650,0.01131759,88358.0,88347.0,0.14469]
[1767141997093,0.01131785,88356.0,88347.0,0.14469]
[1767141997269,0.01131797,88355.0,88347.0,0.14469]
[1767141997890,0.01131772,88357.0,88347.0,0.14469]
[1767141998837,0.01131759,88358.0,88347.0,0.14469]
[1767141999039,0.01131746,88359.0,88347.0,0.14469]
[1767141999272,0.01131759,88358.0,88347.0,0.14469]
[1767141999860,0.01131772,88357.0,88347.0,0.14469]
[1767142000663,0.01131823,88353.0,88341.0,0.0001116]
[1767142000886,0.000549,88347.0,88341.0,0.0001116]
[1767142001266,0.01131849,88351.0,88341.0,0.0001116]
[1767142001689,0.14895836,88352.0,88341.0,0.0001116]
[1767142001892,0.13764,88352.0,88341.0,0.0001116]
[1767142002290,0.0226381,88354.0,88341.0,0.0001116]
[1767142002492,0.01132,88354.0,88341.0,0.04984513]
[1767142003504,0.01131849,88351.0,88341.0,0.04984513]
[1767142003932,0.01131874,88349.0,88341.0,0.04984513]
[1767142004126,0.06791134,88351.0,88341.0,0.04984513]
[1767142004127,0.01131849,88351.0,88341.0,0.04984513]
[1767142004710,0.01131836,88352.0,88341.0,0.04984513]
[1767142005108,0.01131823,88353.0,88341.0,0.04984513]
[1767142005294,0.01131836,88352.0,88341.0,0.04984513]
[1767142005902,0.01131849,88351.0,88341.0,0.04984513]
[1767142007351,0.01131861,88350.0,88341.0,0.0001116]
[1767142007556,0.011319,88347.0,88341.0,0.0001116]
[1767142007756,0.01131861,88350.0,88341.0,0.0001116]
[1767142007898,0.01131874,88349.0,88341.0,0.0001116]
[1767142008383,0.06791143,88351.0,88341.0,0.0001116]
[1767142008768,0.01131861,88350.0,88341.0,0.0001116]
[1767142009120,0.01131887,88348.0,88341.0,0.0001116]
[1767142009546,0.01131874,88349.0,88341.0,0.0001116]
[1767142010593,0.01131861,88350.0,88341.0,0.0001116]
[1767142010912,0.01131849,88351.0,88341.0,0.0001116]
[1767142011093,0.01131861,88350.0,88341.0,0.0001116]
[1767142014737,0.01131874,88349.0,88341.0,0.0001116]
[1767142016017,0.01131861,88350.0,88341.0,0.0001116]
[1767142016872,0.06791051,88352.0,88341.0,0.0001116]
[1767142016873,0.01131836,88352.0,88341.0,0.0001116]
[1767142017129,0.01131849,88351.0,88341.0,0.0001116]
[1767142017330,0.01131823,88353.0,88341.0,0.0001116]
[1767142017482,0.01131836,88352.0,88341.0,0.0001116]
[1767142017887,0.01131823,88353.0,88341.0,0.0001116]
[1767142020377,0.01131836,88352.0,88341.0,0.0001116]
[1767142021520,0.01131849,88351.0,88341.0,0.0001116]
[1767142023065,0.01131861,88350.0,88341.0,0.0001116]
[1767142023619,0.01131887,88348.0,88341.0,0.0001116]
[1767142023994,0.01131874,88349.0,88341.0,0.0001116]
[1767142024218,0.06791202,88350.0,88341.0,0.0001116]
[1767142024421,0.01131861,88350.0,88341.0,0.0001116]
[1767142024570,0.01131836,88352.0,88341.0,0.0001116]
[1767142024917,0.06791051,88352.0,88341.0,0.0001116]
[1767142025067,0.01131861,88350.0,88341.0,0.0001116]
[1767142025632,0.15066,88354.0,88341.0,0.0001116]
[1767142025833,0.01131823,88353.0,88341.0,0.0001116]
[1767142026016,0.15066,88354.0,88341.0,0.1437916]
[1767142026017,0.01132,88354.0,88341.0,0.1437916]
[1767142026216,0.01077,88354.0,88343.0,0.14368]
[1767142026416,0.01077,88354.0,88344.0,0.14368]
[1767142028383,0.01077,88354.0,88344.0,0.15499938]
[1767142029435,0.01077,88354.0,88344.0,0.14368]
[1767142030496,0.01077,88354.0,88344.0,0.15499938]
[1767142031702,0.01077,88354.0,88344.0,0.14368]
[1767142034737,0.000549,88344.0,88341.0,0.0001116]
[1767142034941,0.0113181,88354.0,88342.0,0.14368]
[1767142035140,0.02263797,88355.0,88342.0,0.14368]
[1767142035968,0.0113181,88354.0,88342.0,0.14368]
[1767142036238,0.02263797,88355.0,88342.0,0.14368]
[1767142036467,0.0113181,88354.0,88342.0,0.14368]
[1767142038647,0.06790901,88354.0,88341.0,0.0001116]
[1767142039218,0.01132,88355.0,88341.0,0.0001116]
[1767142040881,0.0113181,88354.0,88341.0,0.0001116]
[1767142041004,0.07922836,88355.0,88341.0,0.0001116]
[1767142041633,0.0113181,88354.0,88341.0,0.0001116]
[1767142043531,0.01131823,88353.0,88341.0,0.0001116]
[1767142046399,0.01131823,88353.0,88341.0,7.028e-05]
[1767142046754,0.01132,88355.0,88341.0,7.028e-05]
[1767142046970,0.02263797,88355.0,88341.0,7.028e-05]
[1767142047176,0.01132,88355.0,88341.0,7.028e-05]
[1767142047704,0.01132,88355.0,88342.0,0.15621964]
[1767142047907,0.01132,88355.0,88342.0,0.1449]
[1767142048246,0.02263797,88355.0,88342.0,0.1449]
[1767142048583,0.01132,88355.0,88342.0,0.1449]
[1767142049451,0.01131836,88352.0,88342.0,0.1449]
[1767142050567,0.01131849,88351.0,88342.0,0.1449]
[1767142050752,0.01131836,88352.0,88342.0,0.1449]
[1767142050955,0.0113181,88354.0,88342.0,0.1449]
[1767142051203,0.01131823,88353.0,88342.0,0.1449]
[1767142051809,0.01131836,88352.0,88342.0,0.1449]
[1767142053122,0.01131849,88351.0,88342.0,0.1449]
[1767142055071,0.01131861,88350.0,88342.0,0.1449]
[1767142055956,0.01131823,88353.0,88342.0,0.1449]
[1767142056385,0.0113181,88354.0,88342.0,0.1449]
[1767142056749,0.01131823,88353.0,88342.0,0.1449]
[1767142056950,0.01131836,88352.0,88342.0,0.1449]
[1767142057377,0.0113181,88354.0,88342.0,0.1449]
[1767142059697,0.02263797,88355.0,88342.0,0.1449]
[1767142060129,0.01132,88355.0,88342.0,0.1449]
[1767142061225,0.02263797,88355.0,88342.0,0.1449]
[1767142061584,0.01132,88355.0,88342.0,0.1449]
[1767142062388,0.01131746,88359.0,88355.0,0.000549]
[1767142062591,0.01131746,88359.0,88350.0,0.1449]
[1767142062794,0.02263746,88359.0,88350.0,0.14485827]
[1767142063200,0.01132,88359.0,88350.0,0.14485827]
[1767142063583,0.00055,88350.0,88345.0,0.01132]
[1767142063788,0.0113181,88354.0,88345.0,0.01132]
[1767142063985,0.01131797,88355.0,88345.0,0.01132]
[1767142064740,0.01131823,88353.0,88345.0,0.01132]
[1767142065054,0.01131797,88355.0,88345.0,0.01132]
[1767142065449,0.0113181,88354.0,88345.0,0.01132]
[1767142065848,0.01131797,88355.0,88345.0,0.01132]
[1767142066429,0.01131823,88353.0,88345.0,0.01132]
[1767142067630,0.0113181,88354.0,88345.0,0.01132]
[1767142068088,0.01131797,88355.0,88345.0,0.01132]
[1767142068443,0.0113181,88354.0,88345.0,0.01132]
[1767142068670,0.01131823,88353.0,88345.0,0.01132]
[1767142069485,0.0113181,88354.0,88345.0,0.01132]
[1767142070401,0.06790905,88354.0,88345.0,0.01132]
[1767142071006,0.01131823,88353.0,88345.0,0.01132]
[1767142071301,0.01131836,88352.0,88345.0,0.01132]
[1767142071449,0.01131823,88353.0,88345.0,0.01132]
[1767142072715,0.0113181,88354.0,88345.0,0.01132]
[1767142073372,0.01131861,88350.0,88342.0,0.1449]
[1767142073541,0.14141,88342.0,88334.0,0.00018188]
[1767142073720,0.20933219,88337.0,88334.0,0.00018188]
[1767142073926,0.14141,88337.0,88334.0,0.00018188]
[1767142074329,0.06791899,88341.0,88334.0,0.00018188]
[1767142074528,0.0113199,88340.0,88334.0,0.00018188]
[1767142074756,0.06791899,88341.0,88334.0,0.00018188]
[1767142074757,0.01131977,88341.0,88334.0,0.00018188]
[1767142074911,0.15273,88342.0,88334.0,0.00018188]
[1767142075912,0.16404964,88342.0,88334.0,0.00018188]
[1767142076777,0.15273,88342.0,88334.0,0.00018188]
[1767142077385,0.16404964,88342.0,88334.0,0.00018188]
[1767142077691,0.15273,88342.0,88334.0,0.00018188]
[1767142080374,0.16404964,88342.0,88334.0,0.00018188]
[1767142080776,0.15273,88342.0,88334.0,0.00018188]
[1767142081350,0.16404964,88342.0,88334.0,0.00018188]
[1767142081753,0.15273,88342.0,88334.0,0.00018188]
[1767142083138,0.02263964,88342.0,88328.0,0.1447816]
[1767142083260,0.02263964,88342.0,88311.0,0.04973353]
[1767142083261,0.13617,88323.0,88311.0,0.04973353]
[1767142083461,0.19278103,88322.0,88321.0,1.6e-06]
[1767142084479,0.13617,88322.0,88321.0,1.6e-06]
[1767142087355,0.1882805,88322.0,88321.0,1.6e-06]
[1767142088100,0.13617,88322.0,88321.0,1.6e-06]
[1767142089138,0.13617,88317.0,88314.0,2.012e-05]
[1767142089339,0.01136,88316.0,88314.0,2.012e-05]
[1767142091023,0.146981,88316.0,88314.0,2.012e-05]
[1767142091323,0.01132182,88325.0,88314.0,2.012e-05]
[1767142091546,0.01136,88324.0,88314.0,2.012e-05]
[1767142092377,0.01136,88324.0,88311.0,0.14417012]
[1767142092669,0.02268195,88324.0,88311.0,0.14417012]
[1767142092886,0.01136,88324.0,88311.0,0.14417012]
[1767142094281,0.13617,88329.0,88314.0,0.56033544]
[1767142094600,0.01136,88328.0,88319.0,0.41578544]
[1767142095206,0.01136,88328.0,88314.0,0.15587323]
[1767142095415,0.01136,88328.0,88314.0,0.14455]
[1767142095840,0.15885143,88328.0,88314.0,0.14455]
[1767142096005,0.14749143,88328.0,88314.0,0.14455]
[1767142096201,0.0001116,88331.0,88319.0,0.13815]
[1767142096412,0.01136,88327.0,88321.0,0.13815]
[1767142101287,0.0001116,88331.0,88321.0,0.13815]
[1767142101502,1.6e-06,88331.0,88322.0,0.13815]
[1767142102876,0.01132265,88331.0,88322.0,0.13815]
[1767142103081,0.01132265,88331.0,88321.0,0.41578544]
[1767142103518,1.6e-06,88331.0,88321.0,0.41578544]
[1767142103738,0.01132265,88331.0,88321.0,0.41578544]
[1767142104182,1.6e-06,88331.0,88321.0,0.41578544]
[1767142104590,1.6e-06,88331.0,88321.0,0.55393544]
[1767142106840,1.6e-06,88331.0,88321.0,0.13815]
[1767142107236,1.6e-06,88331.0,88323.0,0.01132207]
[1767142107462,1.6e-06,88331.0,88324.0,0.01132195]
[1767142109601,1.6e-06,88331.0,88325.0,0.01132182]
[1767142110191,1.6e-06,88331.0,88326.0,0.01132169]
[1767142111051,0.0001116,88345.0,88329.0,0.14947131]
[1767142111220,0.0001116,88345.0,88335.0,0.41578544]
[1767142111221,0.01136,88344.0,88335.0,0.41578544]
[1767142112102,0.00021821,88345.0,88336.0,0.13815]
[1767142112303,0.01157821,88345.0,88336.0,0.13815]
[1767142118063,0.00021821,88345.0,88341.0,0.13815]
[1767142118264,0.00021821,88345.0,88341.0,0.14946977]
[1767142118466,0.00021821,88345.0,88336.0,0.01132041]
[1767142118467,0.001099,88341.0,88330.0,0.41576007]
[1767142118665,0.001099,88341.0,88330.0,0.01146661]
[1767142118984,0.01131964,88342.0,88330.0,0.01146661]
[1767142119132,0.01131964,88342.0,88330.0,0.42722668]
[1767142119558,0.01131951,88343.0,88330.0,0.42722668]
[1767142120312,0.13809,88344.0,88330.0,0.42722668]
[1767142120611,0.14940938,88344.0,88330.0,0.42722668]
[1767142122095,0.13809,88344.0,88330.0,0.42722668]
[1767142123358,0.13809,88344.0,88330.0,0.43854786]
[1767142123895,0.13809,88344.0,88331.0,0.01132105]
[1767142124509,0.13809,88344.0,88332.0,0.01132092]
[1767142124844,0.01136,88345.0,88332.0,0.14947092]
[1767142125852,0.01136,88345.0,88332.0,0.13815]
[1767142128198,0.01136,88345.0,88336.0,0.1452]
[1767142131844,0.01136,88347.0,88338.0,0.1452]
[1767142132870,0.01136,88347.0,88338.0,0.15652015]
[1767142134110,0.01136,88347.0,88338.0,0.1452]
[1767142134683,0.01136,88349.0,88338.0,0.15652015]
[1767142134879,0.01136,88349.0,88338.0,0.1452]
[1767142135288,0.0001116,88351.0,88339.0,0.01132002]
[1767142135508,0.01136,88350.0,88339.0,0.01132002]
[1767142136484,0.01136,88350.0,88338.0,0.1452]
[1767142137268,0.01136,88350.0,88340.0,0.41576007]
[1767142139946,0.01136,88350.0,88341.0,0.01131977]
[1767142140160,0.01136,88350.0,88340.0,0.56152007]
[1767142140310,0.01136,88350.0,88341.0,0.14576]
[1767142140716,0.01136,88350.0,88341.0,0.15707977]
[1767142140941,0.01136,88350.0,88341.0,0.14576]
[1767142141988,0.0001116,88351.0,88341.0,0.14576]
[1767142142803,0.0001116,88351.0,88340.0,0.41576007]
[1767142144103,0.0001116,88351.0,88341.0,0.14576]
[1767142145910,0.0001116,88351.0,88340.0,0.41576007]
[1767142150280,0.0001116,88351.0,88340.0,0.56152007]
[1767142150458,0.0001116,88351.0,88341.0,0.01131977]
[1767142150785,0.0001116,88351.0,88341.0,0.14576]
[1767142151679,0.0001116,88351.0,88340.0,0.41576007]
[1767142154348,0.0001116,88351.0,88340.0,0.57283997]
[1767142154710,0.0001116,88351.0,88341.0,0.14576]
[1767142155376,0.0001116,88351.0,88341.0,0.15707977]
[1767142155617,0.0001116,88351.0,88341.0,0.14576]
[1767142156207,0.0001116,88351.0,88340.0,0.41576007]
[1767142157452,0.0001116,88351.0,88341.0,0.14118]
[1767142161610,0.0001116,88351.0,88341.0,0.14078]
[1767142170290,0.0001116,88351.0,88343.0,0.04973353]
[1767142174210,0.0001116,88351.0,88344.0,0.14118]
[1767142176932,0.0001116,88351.0,88341.0,0.41570086]
[1767142177503,0.0001116,88351.0,88341.0,0.41515186]
[1767142181083,0.0001116,88351.0,88338.0,0.14118]
[1767142181284,0.01131874,88349.0,88337.0,0.01136]
[1767142181464,0.01131874,88349.0,88339.0,0.41570086]
[1767142181848,0.01131913,88346.0,88339.0,0.41570086]
[1767142182207,0.011319,88347.0,88337.0,0.01136]
[1767142182349,0.01131913,88346.0,88337.0,0.01136]
[1767142182554,0.01131925,88345.0,88337.0,0.01136]
[1767142182755,0.011319,88347.0,88337.0,0.01136]
[1767142183857,0.01131887,88348.0,88337.0,0.01136]
[1767142184061,0.011319,88347.0,88338.0,0.41570086]
[1767142185261,0.01131887,88348.0,88338.0,0.41570086]
[1767142185467,0.01131861,88350.0,88338.0,0.41570086]
[1767142185798,0.1472816,88351.0,88338.0,0.41570086]
[1767142185977,0.15860009,88351.0,88338.0,0.41570086]
[1767142186321,0.1472816,88351.0,88340.0,0.41570086]
[1767142186871,0.01143009,88351.0,88340.0,0.41570086]
[1767142187067,0.0001116,88351.0,88340.0,0.41570086]
[1767142187286,0.01131861,88350.0,88340.0,0.41570086]
[1767142187619,0.01143009,88351.0,88340.0,0.41570086]
[1767142189569,0.0001116,88351.0,88340.0,0.41570086]
[1767142191328,0.01143009,88351.0,88340.0,0.41570086]
[1767142191479,0.01131861,88350.0,88340.0,0.41570086]
[1767142192115,0.01131874,88349.0,88338.0,0.14341]
[1767142192328,0.01131861,88350.0,88338.0,0.14341]
[1767142192936,0.0001116,88351.0,88338.0,0.14341]
[1767142194227,0.01143009,88351.0,88338.0,0.14341]
[1767142194430,0.01131861,88350.0,88338.0,0.14341]
[1767142195482,0.01143009,88351.0,88338.0,0.14341]
[1767142197342,0.0001116,88351.0,88338.0,0.14341]
[1767142198348,0.01143009,88351.0,88338.0,0.14341]
[1767142198757,0.01131861,88350.0,88338.0,0.14341]
[1767142200209,0.01143009,88351.0,88338.0,0.14341]
[1767142200749,0.0001116,88351.0,88338.0,0.14341]
[1767142201392,0.0001116,88351.0,88340.0,0.41570086]
[1767142201579,0.01131861,88350.0,88340.0,0.41570086]
[1767142201777,0.01131874,88349.0,88337.0,0.01136]
[1767142201975,0.00055,88337.0,88321.0,0.08164066]
[1767142202181,0.14257,88332.0,88321.0,0.0001116]
[1767142202379,0.14257,88329.0,88328.0,1.6e-06]
[1767142202602,0.14262232,88329.0,88328.0,1.6e-06]
[1767142203404,5.232e-05,88329.0,88328.0,1.6e-06]
[1767142203632,0.14257,88335.0,88329.0,0.00049668]
[1767142203835,0.14257,88335.0,88328.0,1.6e-06]
[1767142205456,0.01131964,88342.0,88328.0,1.6e-06]
[1767142205655,0.1538899,88340.0,88335.0,0.000497]
[1767142205856,0.14257,88338.0,88323.0,0.01132207]
[1767142206407,0.14257,88338.0,88322.0,0.0113222]
[1767142206609,0.14257,88338.0,88323.0,0.01132207]
[1767142206741,0.14257,88338.0,88322.0,0.0113222]
[1767142207621,0.14257,88338.0,88323.0,0.01132207]
[1767142207794,0.14257,88338.0,88322.0,0.0113222]
[1767142209361,0.14257,88338.0,88322.0,0.1607022]
[1767142210057,0.15389015,88338.0,88322.0,0.1607022]
[1767142210633,0.15389015,88338.0,88322.0,0.14938]
[1767142211461,0.01136,88340.0,88328.0,0.41570086]
[1767142211663,0.01136,88340.0,88330.0,0.57640204]
[1767142212604,0.01136,88340.0,88331.0,0.01132105]
[1767142213046,0.01136,88340.0,88330.0,0.56508086]
[1767142213934,0.01136,88340.0,88330.0,0.41570086]
[1767142214136,0.00011,88345.0,88330.0,0.41570086]